[Event "CZE-ch U12 Open 2023"]
[Site "Teplice"]
[Date "2023.03.16"]
[Round "7.11"]
[White "Krisica, Lukas"]
[Black "Migalko, Dmitriy"]
[Result "0-1"]
[ECO "D10"]
[WhiteElo "1342"]
[BlackElo "1581"]
[Annotator "NA RC COMBH"]
[PlyCount "76"]
[EventDate "2023.03.09"]
[EventType "swiss"]
[EventCountry "CZE"]
[SourceTitle "playchess.com"]
[Source "ChessBase"]
[SourceQuality "1"]
[TimeControl "40/5400+30:1800+30"]

1. d4 {[%emt 0:00:52]} d5 {[%emt 0:00:07]} 2. c4 {[%emt 0:00:53]} c6 {[%emt 0:00:37]} 3. Nc3 {[%emt 0:00:56]} Nf6 {[%emt 0:00:23]} 4. e3 {[%emt 0:01:35]} Bf5 {[%emt 0:01:12]} 5. Nf3 {[%emt 0:00:53]} e6 {[%emt 0:00:34]} 6. Bd2 {[%emt 0:01:11]} Bd6 {[%emt 0:03:02]} 7. Be2 {[%emt 0:02:03]} Nbd7 {[%emt 0:03:05]} 8. O-O {[%emt 0:01:20]} O-O {[%emt 0:00:52]} 9. Qb3 {[%emt 0:03:51]} Qc7 {[%emt 0:02:35]} 10. h3 {[%emt 0:01:01]} Ne4 {[%emt 0:04:06]} 11. c5 {[%emt 0:02:43]} Be7 {[%emt 0:04:28]} 12. Qa3 {[%emt 0:11:48]} b6 {[%emt 0:01:50]} 13. b4 {[%emt 0:00:24]} a5 {[%emt 0:06:50]} 14. Nxe4 {[%emt 0:01:17]} dxe4 {[%emt 0:01:12]} 15. Nh2 {[%emt 0:00:50]} axb4 {[%emt 0:02:52]} 16. cxb6 {[%emt 0:01:56]} Qxh2+ {[%emt 0:12:11]} 17. Kxh2 {[%emt 0:00:09]} Rxa3 {[%emt 0:02:24]} 18. Rfb1 {[%emt 0:01:23]} Nxb6 {[%emt 0:06:39]} 19. Bxb4 {[%emt 0:01:27]} Bxb4 {[%emt 0:00:30]} 20. Rxb4 {[%emt 0:00:10]} Nd5 {[%emt 0:00:39]} 21. Rc4 {[%emt 0:00:23]} Rc8 {[%emt 0:04:54]} 22. g4 {[%emt 0:01:08]} Bg6 {[%emt 0:00:51]} 23. h4 {[%emt 0:01:20]} f5 {[%emt 0:03:52]} 24. gxf5 {[%emt 0:00:29]} exf5 {[%emt 0:00:37]} 25. h5 {[%emt 0:01:31]} Be8 {[%emt 0:01:16]} 26. h6 {[%emt 0:01:08]} g6 {[%emt 0:01:53]} 27. Kg2 {[%emt 0:00:57]} Rb8 {[%emt 0:02:31]} 28. Rc2 {[%emt 0:02:12]} f4 {[%emt 0:02:10]} 29. Kh2 {[%emt 0:00:38]} fxe3 {[%emt 0:00:30]} 30. fxe3 {[%emt 0:00:05]} Rxe3 {[%emt 0:00:42]} 31. a4 {[%emt 0:00:41]} Bd7 {[%emt 0:01:05]} 32. a5 {[%emt 0:00:16]} Rh3+ {[%emt 0:01:40]} 33. Kg1 {[%emt 0:00:18]} Rhb3 {[%emt 0:02:22]} 34. Rcc1 {[%emt 0:00:30]} Kf8 {[%emt 0:03:53]} 35. a6 {[%emt 0:00:12]} Nc7 {[%emt 0:01:14]} 36. a7 {[%emt 0:00:27]} Ra8 {[%emt 0:00:50]} 37. Bc4 {[%emt 0:00:41]} Rb7 {[%emt 0:01:01]} 38. Rf1+ {[%emt 0:00:30]} Bf5 {[%emt 0:00:09]} 0-1

[Event "CZE-ch U12 Open 2023"]
[Site "Teplice"]
[Date "2023.03.18"]
[Round "9.1"]
[White "Mik, Tomas"]
[Black "Kroulik, Vaclav"]
[Result "1-0"]
[ECO "B20"]
[WhiteElo "1911"]
[BlackElo "1772"]
[Annotator "TA"]
[PlyCount "67"]
[EventDate "2023.03.09"]
[EventType "swiss"]
[EventCountry "CZE"]
[SourceTitle "playchess.com"]
[Source "ChessBase"]
[SourceQuality "1"]
[TimeControl "40/5400+30:1800+30"]

{[%evp 9,67,18,36,36,29,29,81,63,142,87,108,63,120,54,54,49,36,10,89,85,89,81,134,110,310,327,262,220,213,209,266,218,234,231,429,436,435,411,403,366,529,542,531,536,522,512,497,497,479,470,6511,6479,1958,1275,29986,29987,29987,29988,29983,29971]} 1. e4 {[%emt 0:00:02]} c5 {[%emt 0:00:03]} 2. a3 {[%emt 0:00:06]} d6 {[%emt 0:00:20]} 3. Nc3 {[%emt 0:00:19]} Nc6 {[%emt 0:00:23]} 4. Nf3 {[%emt 0:00:08]} Bg4 {[%emt 0:01:28]} 5. Bb5 {[%emt 0:02:53] [#]} a6 $146 {[%emt 0:03:37]} ({Predecessor:} 5... e6 6. d4 cxd4 7. Qxd4 Bxf3 8. gxf3 a6 9. Bxc6+ bxc6 10. Be3 d5 11. Qa4 Qd7 {½-½ Tammik,J-Sternik,R POL corr Poland 1999}) 6. Bxc6+ {[%emt 0:01:07] B20: Sicilian: Unusual White 2nd moves.} bxc6 {[%emt 0:00:06]} 7. h3 {[%emt 0:00:18]} Bd7 {[%emt 0:01:21]} (7... Bh5 $11) 8. O-O {[%emt 0:00:44] White is better.} g6 {[%emt 0:05:22]} (8... e5 $14) 9. d3 {[%emt 0:01:35]} (9. e5 $142) 9... Bg7 {[%emt 0:00:46]} 10. Be3 {[%emt 0:00:22][%cal Oe4e5]} Rb8 {[%emt 0:03:42] [#]} (10... Nf6 $14) 11. Rb1 {[%emt 0:00:22]} ({Better is} 11. e5 $1 $16) 11... Nf6 $14 {[%emt 0:01:48]} 12. Qd2 {[%emt 0:00:59]} O-O {[%emt 0:01:05]} 13. Bh6 {[%emt 0:02:56]} Qc7 {[%emt 0:02:21]} (13... e5 $11 {remains equal.}) 14. Bxg7 {[%emt 0:03:32]} Kxg7 {[%emt 0:00:03]} 15. e5 {[%emt 0:00:11]} Ng8 {[%emt 0:06:55]} (15... Nd5 $142) 16. Ne4 {[%emt 0:04:18] aiming for exd6.} f5 $2 {[%emt 0:03:49] [#] A mistake that costs the game.} (16... Bf5 $16) 17. Qc3 $1 $18 {[%emt 0:02:17]} Kh6 {[%emt 0:05:05]} 18. exd6 {[%emt 0:03:48]} exd6 {[%emt 0:01:04] [#]} 19. Neg5 {[%emt 0:01:32][%cal Og5h7] And now Nxh7! would win. A dynamic duo of knights.} Nf6 {[%emt 0:02:41]} 20. Rfe1 {[%emt 0:03:00]} Bc8 {[%emt 0:06:43]} 21. Re2 {[%emt 0:06:03]} Kg7 $2 {[%emt 0:05:29]} (21... Rb7 22. b4 Nd5) 22. Rbe1 {[%emt 0:00:48][%cal Bb1e1,Be1e8,Be8e6,Be6c6,Bc6c7,Bc7c8][%mdl 32] Hoping for Re7+.} Rb7 {[%emt 0:00:21]} 23. Re8 {[%emt 0:12:27]} Rxe8 {[%emt 0:02:04]} 24. Rxe8 {[%emt 0:00:15][%cal Og5h7] Nxh7! would be deadly.} d5 {[%emt 0:11:04]} (24... Qd7 {keeps fighting.}) 25. Ne6+ {[%emt 0:01:05]} Bxe6 {[%emt 0:00:12]} 26. Rxe6 {[%emt 0:00:04]} Qd8 {[%emt 0:10:53]} 27. Qxc5 {[%emt 0:03:49]} Rxb2 {[%emt 0:01:17]} 28. Rxc6 {[%emt 0:03:58]} ({Weaker is} 28. Qxc6 Rb1+ 29. Kh2 Rb2 $18) 28... Rb1+ {[%emt 0:05:10]} 29. Kh2 {[%emt 0:00:13]} Qb8+ {[%emt 0:04:11]} (29... Rb7 $142 30. Rxa6 Qc7+ 31. Qxc7+ Rxc7) 30. Rc7+ {[%emt 0:00:39]} Kg8 {[%emt 0:04:30]} 31. g3 {[%emt 0:00:46] White wants to mate with Qe7.} Rb5 {[%emt 0:01:44] Black is weak on the dark squares} 32. Qe7 {[%emt 0:00:54][%csl Gc7][%cal Re7g7] White mates.} Qf8 {[%emt 0:00:21]} 33. Qe6+ {[%emt 0:00:07]} Kh8 {[%emt 0:00:46]} 34. Rc8 {[%emt 0:00:43] Weighted Error Value: White=0.12 (very precise) /Black=0.66} 1-0

[Event "CZE-ch U12 Open 2023"]
[Site "Teplice"]
[Date "2023.03.18"]
[Round "9.2"]
[White "Bara, Jan"]
[Black "Sochor, Antonin"]
[Result "0-1"]
[ECO "D31"]
[WhiteElo "1712"]
[BlackElo "1574"]
[Annotator "NA RC COMBH"]
[PlyCount "92"]
[EventDate "2023.03.09"]
[EventType "swiss"]
[EventCountry "CZE"]
[SourceTitle "playchess.com"]
[Source "ChessBase"]
[SourceQuality "1"]
[TimeControl "40/5400+30:1800+30"]

1. d4 {[%emt 0:00:08]} d5 {[%emt 0:00:11]} 2. c4 {[%emt 0:00:11]} e6 {[%emt 0:00:11]} 3. Nc3 {[%emt 0:00:13]} Bb4 {[%emt 0:00:37]} 4. Nf3 {[%emt 0:00:31]} dxc4 {[%emt 0:00:37]} 5. e4 {[%emt 0:01:43]} b5 {[%emt 0:00:15]} 6. Be2 {[%emt 0:00:43]} Bb7 {[%emt 0:03:56]} 7. Qc2 {[%emt 0:04:27]} h6 {[%emt 0:12:37]} 8. Be3 {[%emt 0:05:51]} Nf6 {[%emt 0:01:37]} 9. Nd2 {[%emt 0:00:31]} a6 {[%emt 0:05:06]} 10. f3 {[%emt 0:06:34]} Nc6 {[%emt 0:02:10]} 11. e5 {[%emt 0:09:10]} Nd5 {[%emt 0:03:35]} 12. Nxd5 {[%emt 0:01:00]} Qxd5 {[%emt 0:00:15]} 13. a3 {[%emt 0:02:28]} Ba5 {[%emt 0:01:30]} 14. O-O-O {[%emt 0:02:04]} Nxd4 {[%emt 0:04:26]} 15. Bxd4 {[%emt 0:00:11]} Qxd4 {[%emt 0:00:22]} 16. Nxc4 {[%emt 0:00:12]} Qf4+ {[%emt 0:01:04]} 17. Nd2 {[%emt 0:00:15]} Qxe5 {[%emt 0:00:48]} 18. Nb3 {[%emt 0:06:07]} Bb6 {[%emt 0:00:33]} 19. Kb1 {[%emt 0:02:51]} O-O {[%emt 0:01:05]} 20. h4 {[%emt 0:01:17]} c5 {[%emt 0:02:56]} 21. g4 {[%emt 0:03:07]} c4 {[%emt 0:02:17]} 22. Nc1 {[%emt 0:03:11]} f5 {[%emt 0:05:37]} 23. gxf5 {[%emt 0:03:38]} Rxf5 {[%emt 0:00:23]} 24. Rhe1 {[%emt 0:04:02]} Qf6 {[%emt 0:01:35]} 25. Rd7 {[%emt 0:01:54]} Bd5 {[%emt 0:02:18]} 26. Na2 {[%emt 0:02:23]} a5 {[%emt 0:02:32]} 27. Nc3 {[%emt 0:00:42]} b4 {[%emt 0:03:00]} 28. Ne4 {[%emt 0:02:10]} Qe5 {[%emt 0:04:34]} 29. Nd6 {[%emt 0:05:51]} c3 {[%emt 0:03:31]} 30. Nxf5 {[%emt 0:03:15]} exf5 {[%emt 0:01:49]} 31. b3 {[%emt 0:03:30]} Kh8 {[%emt 0:10:07]} 32. Rd1 {[%emt 0:15:18]} Bxb3 {[%emt 0:03:17]} 33. Qxb3 {[%emt 0:00:01]} Qxe2 {[%emt 0:00:19]} 34. R7d6 {[%emt 0:02:38]} Rc8 {[%emt 0:04:09]} 35. Qc2 {[%emt 0:00:30]} Qb5 {[%emt 0:00:27]} 36. a4 {[%emt 0:01:41]} Qa6 {[%emt 0:00:40]} 37. R1d3 {[%emt 0:02:08]} b3 {[%emt 0:01:16]} 38. Qc1 {[%emt 0:05:59]} c2+ {[%emt 0:04:07]} 39. Kb2 {[%emt 0:00:02]} Qc4 {[%emt 0:01:23]} 40. Rxb6 {[%emt 0:01:21]} Qxd3 {[%emt 0:00:34]} 41. Rxb3 {[%emt 0:30:01]} Qd4+ {[%emt 0:30:23]} 42. Ka3 {[%emt 0:00:44]} Rc4 {[%emt 0:01:15]} 43. Rb8+ {[%emt 0:00:54]} Kh7 {[%emt 0:00:16]} 44. Ka2 {[%emt 0:00:28]} Rxa4+ {[%emt 0:00:29]} 45. Kb3 {[%emt 0:00:01]} Qc4+ {[%emt 0:00:18]} 46. Kb2 {[%emt 0:00:01]} Ra2# {[%emt 0:00:15]} 0-1

[Event "CZE-ch U12 Open 2023"]
[Site "Teplice"]
[Date "2023.03.18"]
[Round "9.3"]
[White "Mydlar, Matej"]
[Black "Mikulka, Martin Michael"]
[Result "1-0"]
[ECO "C05"]
[WhiteElo "1586"]
[BlackElo "1786"]
[Annotator "NA RC COMBH"]
[PlyCount "65"]
[EventDate "2023.03.09"]
[EventType "swiss"]
[EventCountry "CZE"]
[SourceTitle "playchess.com"]
[Source "ChessBase"]
[SourceQuality "1"]
[TimeControl "40/5400+30:1800+30"]

1. e4 {[%emt 0:00:05]} e6 {[%emt 0:00:08]} 2. d4 {[%emt 0:00:05]} d5 {[%emt 0:00:04]} 3. Nd2 {[%emt 0:00:04]} Nf6 {[%emt 0:00:10]} 4. e5 {[%emt 0:00:06]} Nfd7 {[%emt 0:00:05]} 5. Ngf3 {[%emt 0:00:08]} c5 {[%emt 0:00:34]} 6. c3 {[%emt 0:00:04]} Nc6 {[%emt 0:00:21]} 7. Bd3 {[%emt 0:04:35]} f6 {[%emt 0:03:42]} 8. exf6 {[%emt 0:00:34]} Nxf6 {[%emt 0:00:20]} 9. O-O {[%emt 0:00:23]} cxd4 {[%emt 0:00:41]} 10. cxd4 {[%emt 0:00:32]} Bd6 {[%emt 0:00:58]} 11. Re1 {[%emt 0:00:20]} O-O {[%emt 0:01:14]} 12. Nb3 {[%emt 0:00:40]} Qc7 {[%emt 0:04:03]} 13. Bg5 {[%emt 0:00:53]} Bd7 {[%emt 0:02:17]} 14. Bh4 {[%emt 0:00:41]} Rae8 {[%emt 0:03:06]} 15. Rc1 {[%emt 0:01:24]} Qb6 {[%emt 0:03:23]} 16. Ne5 {[%emt 0:01:51]} Bc8 {[%emt 0:03:35]} 17. Bg3 {[%emt 0:01:11]} Bxe5 {[%emt 0:01:58]} 18. dxe5 {[%emt 0:00:15]} Nd7 {[%emt 0:02:00]} 19. Qh5 {[%emt 0:01:23]} g6 {[%emt 0:01:46]} 20. Bxg6 {[%emt 0:10:30]} hxg6 {[%emt 0:01:02]} 21. Qxg6+ {[%emt 0:00:06]} Kh8 {[%emt 0:00:07]} 22. Bh4 {[%emt 0:00:33]} Ne7 {[%emt 0:13:16]} 23. Qh6+ {[%emt 0:00:23]} Kg8 {[%emt 0:00:08]} 24. Bf6 {[%emt 0:00:50]} Nxf6 {[%emt 0:00:45]} 25. exf6 {[%emt 0:00:06]} Rf7 {[%emt 0:01:41]} 26. Re3 {[%emt 0:05:01]} Qxe3 {[%emt 0:04:47]} 27. fxe3 {[%emt 0:00:12]} Nf5 {[%emt 0:00:16]} 28. Qg5+ {[%emt 0:00:37]} Kh8 {[%emt 0:01:02]} 29. Qh5+ {[%emt 0:00:10]} Kg8 {[%emt 0:00:09]} 30. Rf1 {[%emt 0:00:56]} Nd6 {[%emt 0:01:17]} 31. Rf3 {[%emt 0:01:52]} Rh7 {[%emt 0:00:11]} 32. Qg6+ {[%emt 0:00:20]} Kh8 {[%emt 0:00:07]} 33. f7 {[%emt 0:00:07]} 1-0

[Event "CZE-ch U12 Open 2023"]
[Site "Teplice"]
[Date "2023.03.18"]
[Round "9.4"]
[White "Boff, Ondrej"]
[Black "Chernyy, Andrey"]
[Result "1/2-1/2"]
[ECO "C24"]
[WhiteElo "1561"]
[BlackElo "1605"]
[Annotator "NA RC COMBH"]
[PlyCount "134"]
[EventDate "2023.03.09"]
[EventType "swiss"]
[EventCountry "CZE"]
[SourceTitle "playchess.com"]
[Source "ChessBase"]
[SourceQuality "1"]
[TimeControl "40/5400+30:1800+30"]

1. e4 {[%emt 0:00:04]} e5 {[%emt 0:00:05]} 2. Bc4 {[%emt 0:00:05]} Nf6 {[%emt 0:00:07]} 3. d3 {[%emt 0:00:13]} Nc6 {[%emt 0:00:33]} 4. Nc3 {[%emt 0:00:14]} Bb4 {[%emt 0:00:49]} 5. Nge2 {[%emt 0:01:15]} O-O {[%emt 0:03:21]} 6. O-O {[%emt 0:00:45]} Na5 {[%emt 0:01:33]} 7. a3 {[%emt 0:04:23]} Bxc3 {[%emt 0:03:16]} 8. Nxc3 {[%emt 0:00:10]} Nxc4 {[%emt 0:00:06]} 9. dxc4 {[%emt 0:00:06]} d6 {[%emt 0:00:19]} 10. Qd3 {[%emt 0:01:57]} Be6 {[%emt 0:02:36]} 11. Bg5 {[%emt 0:03:28]} h6 {[%emt 0:01:42]} 12. Bh4 {[%emt 0:02:16]} g5 {[%emt 0:02:13]} 13. Bg3 {[%emt 0:01:21]} Kg7 {[%emt 0:04:54]} 14. h4 {[%emt 0:04:52]} Rh8 {[%emt 0:08:47]} 15. b3 {[%emt 0:07:13]} Nh5 {[%emt 0:04:25]} 16. Qf3 {[%emt 0:09:11]} Nf4 {[%emt 0:11:06]} 17. Bxf4 {[%emt 0:08:05]} gxf4 {[%emt 0:02:42]} 18. g3 {[%emt 0:03:11]} Rg8 {[%emt 0:00:50]} 19. Kh2 {[%emt 0:00:35]} Kh7 {[%emt 0:00:41]} 20. Rg1 {[%emt 0:02:35]} Rg4 {[%emt 0:04:10]} 21. Rg2 {[%emt 0:05:53]} Qf6 {[%emt 0:04:21]} 22. Kh1 {[%emt 0:02:35]} Rag8 {[%emt 0:05:35]} 23. Nd5 {[%emt 0:01:50]} Qd8 {[%emt 0:00:36]} 24. Rd1 {[%emt 0:01:40]} R4g6 {[%emt 0:04:29]} 25. Rd2 {[%emt 0:01:29]} Bh3 {[%emt 0:08:19]} 26. Rh2 {[%emt 0:01:18]} Bg4 {[%emt 0:01:08]} 27. Qc3 {[%emt 0:01:24]} fxg3 {[%emt 0:01:31]} 28. fxg3 {[%emt 0:01:25]} c6 {[%emt 0:02:26]} 29. Nb4 {[%emt 0:00:28]} a5 {[%emt 0:00:47]} 30. Na2 {[%emt 0:00:32]} Be6 {[%emt 0:00:17]} 31. Rhg2 {[%emt 0:02:23]} Bh3 {[%emt 0:00:33]} 32. Rg1 {[%emt 0:00:19]} Qf6 {[%emt 0:01:55]} 33. Qe3 {[%emt 0:04:26]} Qe7 {[%emt 0:02:15]} 34. Kh2 {[%emt 0:03:05]} Bd7 {[%emt 0:01:42]} 35. Nc3 {[%emt 0:00:59]} Qe6 {[%emt 0:00:39]} 36. Kh1 {[%emt 0:02:19]} Qh3+ {[%emt 0:00:45]} 37. Rh2 {[%emt 0:00:15]} Rxg3 {[%emt 0:00:43]} 38. Rxh3 {[%emt 0:00:42]} Rxh3+ {[%emt 0:00:22]} 39. Qxh3 {[%emt 0:00:07]} Rxg1+ {[%emt 0:00:09]} 40. Kxg1 {[%emt 0:00:13]} Bxh3 {[%emt 0:00:02]} 41. Kh2 {[%emt 0:31:31]} Be6 {[%emt 0:30:11]} 42. Kg3 {[%emt 0:00:18]} Kg6 {[%emt 0:00:32]} 43. Nd1 {[%emt 0:02:12]} f5 {[%emt 0:00:58]} 44. exf5+ {[%emt 0:00:22]} Bxf5 {[%emt 0:00:43]} 45. Ne3 {[%emt 0:00:10]} Be4 {[%emt 0:01:20]} 46. Kg4 {[%emt 0:00:32]} h5+ {[%emt 0:00:45]} 47. Kg3 {[%emt 0:00:29]} b5 {[%emt 0:00:29]} 48. c3 {[%emt 0:00:38]} d5 {[%emt 0:02:38]} 49. cxb5 {[%emt 0:02:30]} cxb5 {[%emt 0:00:05]} 50. a4 {[%emt 0:00:18]} bxa4 51. bxa4 {[%emt 0:00:15]} d4 {[%emt 0:05:54]} 52. cxd4 {[%emt 0:00:38]} exd4 {[%emt 0:00:01]} 53. Nc4 {[%emt 0:00:11]} Bc2 {[%emt 0:00:21]} 54. Nxa5 {[%emt 0:00:48]} Bxa4 {[%emt 0:00:08]} 55. Kf4 {[%emt 0:00:25]} d3 {[%emt 0:01:06]} 56. Nc4 {[%emt 0:00:41]} Kf6 {[%emt 0:03:43]} 57. Ke3 {[%emt 0:01:14]} Bc2 {[%emt 0:00:25]} 58. Nb2 {[%emt 0:00:34]} Kf5 {[%emt 0:00:32]} 59. Nxd3 {[%emt 0:00:39]} Bxd3 {[%emt 0:00:15]} 60. Kxd3 {[%emt 0:00:02]} Kg4 {[%emt 0:00:07]} 61. Ke4 {[%emt 0:00:35]} Kxh4 {[%emt 0:00:23]} 62. Kf4 {[%emt 0:00:18]} Kh3 {[%emt 0:00:26]} 63. Kf3 {[%emt 0:00:04]} h4 {[%emt 0:00:09]} 64. Kf2 {[%emt 0:00:14]} Kh2 {[%emt 0:00:16]} 65. Kf1 {[%emt 0:01:07]} Kg3 {[%emt 0:00:28]} 66. Kg1 {[%emt 0:00:11]} h3 {[%emt 0:00:31]} 67. Kh1 {[%emt 0:00:09]} h2 {[%emt 0:00:16]} 1/2-1/2

[Event "CZE-ch U12 Open 2023"]
[Site "Teplice"]
[Date "2023.03.18"]
[Round "9.5"]
[White "Policar, Martin"]
[Black "Sboev, Kirill"]
[Result "0-1"]
[ECO "D02"]
[WhiteElo "1552"]
[BlackElo "1506"]
[Annotator "NA RC COMBH"]
[PlyCount "88"]
[EventDate "2023.03.09"]
[EventType "swiss"]
[EventCountry "CZE"]
[SourceTitle "playchess.com"]
[Source "ChessBase"]
[SourceQuality "1"]
[TimeControl "40/5400+30:1800+30"]

1. d4 {[%emt 0:00:14]} d5 {[%emt 0:00:07]} 2. Nf3 {[%emt 0:00:40]} Nf6 {[%emt 0:00:11]} 3. g3 {[%emt 0:00:20]} e6 {[%emt 0:00:56]} 4. Bg2 {[%emt 0:00:11]} Be7 {[%emt 0:00:46]} 5. O-O {[%emt 0:00:22]} O-O {[%emt 0:00:06]} 6. c4 {[%emt 0:00:28]} dxc4 {[%emt 0:01:54]} 7. Qa4 {[%emt 0:05:36]} a6 {[%emt 0:00:35]} 8. Qxc4 {[%emt 0:01:41]} b5 {[%emt 0:00:17]} 9. Qd3 {[%emt 0:03:02]} Bb7 {[%emt 0:01:31]} 10. Bg5 {[%emt 0:16:02]} h6 {[%emt 0:06:55]} 11. Bxf6 {[%emt 0:03:17]} Bxf6 {[%emt 0:00:16]} 12. h4 {[%emt 0:05:26]} Ra7 {[%emt 0:05:44]} 13. a3 {[%emt 0:16:08]} Bxf3 {[%emt 0:03:13]} 14. Bxf3 {[%emt 0:02:02]} Qxd4 {[%emt 0:02:11]} 15. Qxd4 {[%emt 0:00:31]} Bxd4 {[%emt 0:00:06]} 16. Nc3 {[%emt 0:00:06]} Bxc3 {[%emt 0:10:39]} 17. bxc3 {[%emt 0:00:09]} Nd7 {[%emt 0:01:49]} 18. Rfd1 {[%emt 0:00:29]} Ne5 {[%emt 0:01:39]} 19. Be4 {[%emt 0:00:28]} f5 {[%emt 0:01:02]} 20. Bc2 {[%emt 0:00:49]} Kf7 {[%emt 0:01:51]} 21. f4 {[%emt 0:04:43]} Nc4 {[%emt 0:00:50]} 22. Rd7+ {[%emt 0:00:27]} Kf6 {[%emt 0:00:31]} 23. Bb3 {[%emt 0:00:47]} Nd6 {[%emt 0:00:48]} 24. Rd1 {[%emt 0:00:46]} Rf7 {[%emt 0:01:12]} 25. Rxf7+ {[%emt 0:02:44]} Kxf7 {[%emt 0:00:10]} 26. Kg2 {[%emt 0:03:06]} Ke7 {[%emt 0:00:15]} 27. Kf3 {[%emt 0:00:29]} c5 {[%emt 0:00:21]} 28. Bc2 {[%emt 0:01:03]} Rd7 {[%emt 0:00:31]} 29. g4 {[%emt 0:00:33]} fxg4+ {[%emt 0:01:11]} 30. Kxg4 {[%emt 0:00:08]} Nc4 {[%emt 0:01:00]} 31. Rxd7+ {[%emt 0:03:10]} Kxd7 {[%emt 0:00:05]} 32. Kh5 {[%emt 0:00:29]} Ke7 {[%emt 0:00:10]} 33. Kg6 {[%emt 0:01:01]} Nxa3 {[%emt 0:00:20]} 34. Bd1 {[%emt 0:00:36]} Kf8 {[%emt 0:00:10]} 35. e4 {[%emt 0:00:36]} Nc4 {[%emt 0:01:10]} 36. Bg4 {[%emt 0:01:14]} a5 {[%emt 0:02:06]} 37. Bxe6 {[%emt 0:04:07]} a4 {[%emt 0:00:11]} 38. f5 {[%emt 0:00:19]} a3 {[%emt 0:00:43]} 39. f6 {[%emt 0:00:04]} gxf6 {[%emt 0:00:28]} 40. Kxh6 {[%emt 0:00:35]} a2 {[%emt 0:00:16]} 41. Bxc4 {[%emt 0:30:29]} bxc4 {[%emt 0:30:10]} 42. h5 {[%emt 0:00:21]} a1=Q {[%emt 0:00:10]} 43. Kh7 {[%emt 0:00:14]} Qg1 {[%emt 0:00:13]} 44. e5 {[%emt 0:00:15]} Qg7# {[%emt 0:00:09]} 0-1

[Event "CZE-ch U12 Open 2023"]
[Site "Teplice"]
[Date "2023.03.18"]
[Round "9.6"]
[White "Maly, Jiri"]
[Black "Sochor, Vaclav"]
[Result "0-1"]
[ECO "C00"]
[WhiteElo "1520"]
[BlackElo "1503"]
[Annotator "NA RC COMBH"]
[PlyCount "98"]
[EventDate "2023.03.09"]
[EventType "swiss"]
[EventCountry "CZE"]
[SourceTitle "playchess.com"]
[Source "ChessBase"]
[SourceQuality "1"]
[TimeControl "40/5400+30:1800+30"]

1. e4 {[%emt 0:00:12]} e6 {[%emt 0:00:21]} 2. d4 {[%emt 0:00:28]} d5 {[%emt 0:00:13]} 3. Bd3 {[%emt 0:00:27]} c5 {[%emt 0:01:33]} 4. exd5 {[%emt 0:03:51]} exd5 {[%emt 0:00:45]} 5. dxc5 {[%emt 0:01:31]} Bxc5 {[%emt 0:00:14]} 6. Ne2 {[%emt 0:02:12]} Ne7 {[%emt 0:01:04]} 7. O-O {[%emt 0:02:06]} O-O {[%emt 0:01:21]} 8. Ng3 {[%emt 0:02:02]} Ng6 {[%emt 0:02:57]} 9. Nc3 {[%emt 0:03:41]} Be6 {[%emt 0:02:11]} 10. Bd2 {[%emt 0:07:04]} Nc6 {[%emt 0:02:00]} 11. Kh1 {[%emt 0:10:31]} Nce5 {[%emt 0:04:53]} 12. Be2 {[%emt 0:05:52]} f5 {[%emt 0:11:27]} 13. f4 {[%emt 0:03:09]} Nc4 {[%emt 0:02:34]} 14. Bxc4 {[%emt 0:09:59]} dxc4 {[%emt 0:00:09]} 15. Qe2 {[%emt 0:03:40]} Re8 {[%emt 0:07:12]} 16. Rfe1 {[%emt 0:04:18]} Bf7 {[%emt 0:01:51]} 17. Qd1 {[%emt 0:01:37]} Qf6 {[%emt 0:10:52]} 18. Qf3 {[%emt 0:04:34]} Rad8 {[%emt 0:05:07]} 19. Be3 {[%emt 0:06:12]} Bxe3 {[%emt 0:11:36]} 20. Rxe3 {[%emt 0:00:18]} Rd2 {[%emt 0:01:40]} 21. Rxe8+ {[%emt 0:01:05]} Bxe8 {[%emt 0:01:14]} 22. Qe3 {[%emt 0:00:43]} Rd8 {[%emt 0:05:06]} 23. Rd1 {[%emt 0:02:15]} Rxd1+ {[%emt 0:00:56]} 24. Nxd1 {[%emt 0:00:16]} Bc6 {[%emt 0:01:10]} 25. Nc3 {[%emt 0:03:38]} Nh4 {[%emt 0:01:52]} 26. Qxa7 {[%emt 0:02:17]} Bxg2+ {[%emt 0:02:20]} 27. Kg1 {[%emt 0:00:28]} Qe7 {[%emt 0:01:30]} 28. Qf2 {[%emt 0:01:28]} Bc6 {[%emt 0:01:18]} 29. Nge2 {[%emt 0:02:29]} Nf3+ {[%emt 0:02:42]} 30. Kf1 {[%emt 0:00:55]} Qd6 {[%emt 0:01:22]} 31. Ng1 {[%emt 0:09:17]} Qxf4 {[%emt 0:02:25]} 32. Nxf3 {[%emt 0:01:17]} Bxf3 {[%emt 0:00:54]} 33. Ne2 {[%emt 0:01:52]} Qe4 {[%emt 0:02:41]} 34. Ng3 {[%emt 0:01:08]} Qd5 {[%emt 0:00:36]} 35. Qe1 {[%emt 0:00:35]} Kf7 {[%emt 0:01:07]} 36. Ne2 {[%emt 0:00:34]} Qe4 {[%emt 0:01:06]} 37. Qd2 {[%emt 0:00:43]} Bxe2+ {[%emt 0:00:57]} 38. Qxe2 {[%emt 0:00:08]} Qh1+ {[%emt 0:00:09]} 39. Kf2 {[%emt 0:00:15]} Qxh2+ {[%emt 0:00:04]} 40. Ke3 {[%emt 0:00:37]} Qxe2+ {[%emt 0:00:06]} 41. Kxe2 {[%emt 0:30:09]} Ke6 {[%emt 0:30:15]} 42. Kd2 {[%emt 0:00:39]} Kd5 {[%emt 0:00:08]} 43. Kc3 {[%emt 0:00:23]} h5 {[%emt 0:00:41]} 44. a4 {[%emt 0:00:23]} Kc5 {[%emt 0:00:15]} 45. b4+ {[%emt 0:00:24]} cxb3 {[%emt 0:00:40]} 46. cxb3 {[%emt 0:00:22]} h4 {[%emt 0:00:15]} 47. b4+ {[%emt 0:00:10]} Kc6 {[%emt 0:00:13]} 48. Kc4 {[%emt 0:00:18]} b5+ {[%emt 0:00:21]} 49. axb5+ {[%emt 0:00:11]} Kb6 {[%emt 0:00:06]} 0-1